bitfinex-derivatives/quotes_ETHF0:USTF0_20250616
["timestamp","ask_amount","ask_price","bid_price","bid_amount"]
[1750051920854,1.3555,2612.6,2612.1,3.2078]
[1750051921057,1.3555,2612.6,2610.8,1.2471]
[1750051921058,3.2078,2612.2,2611.6,0.5714]
[1750051921358,3.21354416,2612.2,2611.6,3.78494416]
[1750051921656,3.2078,2612.1,2611.7,0.7154]
[1750051921966,3.2078,2611.9,2611.7,0.7154]
[1750051922164,1.3582,2611.8,2611.7,0.7154]
[1750051922860,6.3582,2611.8,2610.3,3.2078]
[1750051923062,3.2078,2611.4,2610.4,1.53242376]
[1750051923359,26.3818,2611.4,2610.5,1.53242376]
[1750051923550,23.174,2611.4,2610.6,1.60903376]
[1750051923755,23.174,2611.4,2610.7,2.20768872]
[1750051924053,0.00574416,2611.3,2610.8,1.61476792]
[1750051924250,0.00574416,2611.3,2610.9,2.20762082]
[1750051924453,0.00574416,2611.3,2611.0,0.59859706]
[1750051924664,3.2078,2611.1,2610.8,0.00574416]
[1750051924959,3.2078,2611.1,2609.9,3.2078]
[1750051925264,3.2078,2610.8,2610.0,2.13162313]
[1750051925456,3.2078,2610.8,2610.1,1.53284129]
[1750051925659,3.2078,2610.8,2610.3,0.06737406]
[1750051925957,0.00574416,2611.3,2610.6,3.2078]
[1750051926153,0.00574416,2611.3,2610.7,2.13721092]
[1750051926459,0.00574416,2611.3,2610.8,1.53284129]
[1750051926660,0.00574416,2611.3,2610.9,1.53284129]
[1750051926860,0.00574416,2611.3,2611.0,1.53284129]
[1750051927056,0.00574416,2611.3,2610.7,0.00574416]
[1750051927057,1.32804416,2611.3,2610.7,0.00574416]
[1750051927251,0.00574416,2611.3,2610.8,2.13112694]
[1750051927455,0.00574416,2611.3,2610.9,1.53250684]
[1750051927769,1.32804416,2611.3,2611.0,1.53250684]
[1750051928067,1.32804416,2611.3,2611.1,2.13110135]
[1750051928260,1.32804416,2611.3,2611.2,1.53250684]
[1750051928963,0.00574416,2611.3,2611.2,2.29834684]
[1750051929259,0.00574416,2611.3,2611.2,1.93955012]
[1750051929461,3.2078,2612.7,2611.2,32.71973743]
[1750051929662,23.171,2616.0,2613.3,3.2078]
[1750051929857,3.2078,2615.3,2614.0,3.2078]
[1750051930058,0.07647,2615.2,2614.6,3.2078]
[1750051930263,3.2078,2614.8,2614.7,0.59780725]
[1750051930559,33.248908,2614.8,2613.2,2.08476086]
[1750051930761,33.248908,2614.8,2612.1,4.86561608]
[1750051930762,3.2078,2614.0,2613.0,5.29256086]
[1750051930958,1.3578,2613.9,2613.3,3.2078]
[1750051931159,23.171,2613.8,2613.3,3.97301]
[1750051931464,1e-08,2614.0,2613.7,0.76511]
[1750051931761,1e-08,2614.0,2613.7,2.0950432]
[1750051931965,23.164,2613.9,2613.6,2.0950432]
[1750051932268,4.4356,2613.8,2612.1,5.99028847]
[1750051932456,3.2078,2612.3,2611.5,2.78248847]
[1750051932660,6.793628,2612.0,2611.5,3.2078]
[1750051932855,1.2278,2611.9,2611.5,0.07658]
[1750051933065,3.2078,2611.7,2610.7,3.2078]
[1750051933361,23.164,2612.2,2610.9,0.00394732]
[1750051933362,0.00574416,2611.5,2610.9,0.00394732]
[1750051933665,0.00574416,2611.5,2611.4,3.2078]
[1750051933859,0.00574416,2611.5,2611.4,0.07658]
[1750051934061,5.0,2611.5,2611.4,0.07658]
[1750051934368,5.0,2611.5,2611.4,0.65250379]
[1750051934665,0.8654,2612.1,2611.4,0.07658]
[1750051934865,0.8654,2612.1,2611.5,3.2078]
[1750051935068,0.8654,2612.1,2611.2,3.54832847]
[1750051935069,3.2078,2611.9,2611.6,0.65045529]
[1750051935263,0.87114416,2612.1,2611.7,0.07657]
[1750051935455,0.87114416,2612.1,2611.8,0.57385021]
[1750051935659,0.00574416,2612.1,2611.8,2.78248847]
[1750051935863,0.00574416,2612.1,2612.0,2.78248847]
[1750051936163,3.2078,2614.0,2612.1,0.76557]
[1750051936358,3.2078,2612.9,2612.5,3.55804233]
[1750051936566,23.165,2612.8,2612.5,3.55804233]
[1750051936867,23.165,2612.8,2612.7,3.55804233]
[1750051937065,23.165,2612.8,2612.7,0.57319478]
[1750051937262,23.165,2612.8,2612.7,0.57319546]
[1750051937464,28.165,2612.8,2612.6,3.2078]
[1750051937659,16.43085074,2612.8,2612.5,0.00574416]
[1750051937864,16.43085074,2612.8,2612.5,3.97898416]
[1750051938167,16.43085074,2612.8,2612.7,6.95139292]
[1750051938764,4.94372145,2612.8,2612.5,3.21354416]
[1750051939162,4.94372145,2612.8,2612.7,5.10723945]
[1750051939471,4.94372145,2612.8,2612.7,5.57384137]
[1750051939663,1.49734791,2612.8,2612.5,3.21354416]
[1750051940065,3.2078,2612.7,2612.6,0.57324212]
[1750051940371,9.70514791,2612.8,2612.6,0.57333152]
[1750051940572,1.49734791,2612.8,2612.7,2.92183482]
[1750051940772,1.49734791,2612.8,2612.7,0.57325632]
[1750051940965,6.49734791,2612.8,2612.5,3.28091822]
[1750051941163,9.70514791,2612.8,2612.6,1.53188738]
[1750051941369,1.49734791,2612.8,2612.7,1.53188738]
[1750051941562,1.49734791,2612.8,2612.7,5.31359003]
[1750051941766,6.49734791,2612.8,2612.7,2.10579003]
[1750051942075,6.49734791,2612.8,2612.7,1.53188738]
[1750051942275,6.49734791,2612.8,2612.5,0.07311822]
[1750051942472,10.001428,2612.6,2612.5,0.07311822]
[1750051942676,10.001428,2612.6,2612.5,0.67157551]
[1750051942876,15.001428,2612.6,2612.5,0.67158892]
[1750051943175,15.001428,2612.6,2612.5,0.07311822]
[1750051943374,3.2078,2612.6,2612.5,0.07311822]
[1750051943568,8.2078,2612.6,2612.5,0.07311822]
[1750051944379,1.49734791,2612.8,2612.5,0.07311822]
[1750051944669,1.1239213,2612.8,2612.6,0.59844008]
[1750051944874,1.1239213,2612.8,2612.7,0.57888724]
[1750051945074,1.1239213,2612.8,2612.6,0.59844008]
[1750051945075,5.87497812,2612.8,2612.6,0.59844008]
[1750051945276,12.66860612,2612.8,2612.7,0.57888783]
[1750051945476,12.66860612,2612.8,2612.7,1.53795173]
[1750051945778,12.66860612,2612.8,2612.7,0.59845159]
[1750051945966,12.66860612,2612.8,2612.6,0.59844008]
[1750051946271,12.66860612,2612.8,2611.2,3.2078]
[1750051946272,16.52760612,2612.8,2611.2,3.2078]
[1750051946480,3.2078,2611.9,2611.2,3.2078]
[1750051946667,23.161,2611.8,2611.5,3.2078]
[1750051947273,23.161,2611.8,2611.5,3.10504614]
[1750051947880,3.2078,2613.4,2611.5,8.10504614]
[1750051948074,3.2078,2613.4,2611.4,0.00574416]
[1750051948075,3.2078,2612.8,2611.8,3.2078]
[1750051948379,23.161,2613.4,2612.9,0.76535]
[1750051948581,23.161,2613.4,2612.8,3.2078]
[1750051949475,3.20250623,2613.1,2612.5,3.27517406]
[1750051949779,0.76527,2613.2,2612.6,0.76541]
[1750051949977,0.76527,2613.2,2612.9,3.2078]
[1750051950280,0.7653,2613.1,2612.9,3.2078]
[1750051950478,0.00574416,2613.3,2612.9,3.2078]
[1750051950673,0.76531,2613.1,2612.9,3.2078]
[1750051950873,0.76527,2613.2,2612.9,3.2078]
[1750051951379,0.00574416,2613.3,2612.9,3.2078]
[1750051951872,0.00574416,2613.3,2612.5,1.43731064]
[1750051951873,3.2078,2613.0,2612.5,1.43731064]
[1750051952074,1.31224416,2613.3,2612.8,3.2078]
[1750051952273,0.7653,2613.1,2612.8,3.2078]
[1750051952473,0.76527,2613.2,2612.8,3.2078]
[1750051952673,1.31224416,2613.3,2612.8,3.2078]
[1750051952871,1.31224416,2613.3,2612.8,3.21354416]
[1750051953076,0.7653,2613.1,2612.8,3.21354416]
[1750051953273,0.00574416,2613.3,2612.8,0.00574416]
[1750051953484,1.28894416,2613.3,2612.8,0.00574416]
[1750051953683,0.00574416,2613.3,2613.0,3.2078]
[1750051953879,0.00574416,2613.3,2613.1,1.232]
[1750051954075,0.76529,2613.1,2613.0,3.2078]
[1750051954276,0.76529,2613.1,2613.0,4.5732762]
[1750051954674,0.76528,2613.2,2613.0,4.5732762]
[1750051954981,0.76528,2613.2,2613.1,1.3654762]
[1750051955476,0.00574416,2613.3,2613.0,3.2078]
[1750051955679,0.00574416,2613.3,2613.1,1.14754567]
[1750051956481,0.77097416,2613.3,2613.1,1.14754567]
[1750051956983,0.00574416,2613.3,2613.1,1.14754567]
[1750051957183,0.77097416,2613.3,2613.1,1.14754567]
[1750051957783,0.77097416,2613.3,2613.2,0.35891187]
[1750051957980,0.00574416,2613.3,2613.2,0.53801982]
[1750051958176,0.77097416,2613.3,2613.1,1.14754567]
[1750051958376,0.77097416,2613.3,2613.2,0.35891189]
[1750051958577,0.76535,2612.9,2612.8,0.07311822]
[1750051958780,3.2078,2612.9,2612.2,1.3407]
[1750051958982,3.2078,2612.9,2611.4,3.2078]
[1750051958983,8.707288,2612.5,2611.4,3.2078]
[1750051959184,69.093,2612.4,2611.7,3.2078]
[1750051959378,23.153,2612.4,2611.7,3.2078]
[1750051959584,23.153,2612.4,2612.0,3.9734]
[1750051959882,23.153,2612.4,2612.3,3.2078]
[1750051960487,0.76542,2612.7,2612.3,3.2078]
[1750051960678,23.153,2612.7,2612.6,3.2078]
[1750051961088,23.9184,2612.7,2612.6,3.2078]
[1750051961288,23.153,2612.7,2612.6,3.2078]
[1750051962283,4.5435,2613.4,2612.6,3.2078]
[1750051962481,23.91927,2613.2,2612.9,3.2078]
[1750051962676,23.91927,2613.2,2613.0,1.3049]
[1750051963087,5.12059,2613.7,2613.0,1.3049]
[1750051963088,3.2078,2613.7,2613.0,1.3049]
[1750051963279,3.2078,2614.0,2613.2,3.2078]
[1750051963483,3.2078,2614.0,2613.0,1.3049]
[1750051963484,3.2078,2613.7,2613.0,1.3049]
[1750051963684,0.76527,2613.2,2613.0,1.3049]
[1750051963889,0.76529,2613.1,2613.0,1.3049]
[1750051964192,23.154,2613.2,2613.0,1.3049]
[1750051965283,0.77098416,2613.3,2613.0,1.3049]
[1750051965584,3.2078,2614.0,2613.2,3.2078]
[1750051965883,0.76513,2613.7,2613.5,3.2078]
[1750051966191,3.2078,2614.0,2613.2,3.2078]
[1750051966382,0.76515,2613.6,2613.2,3.2078]
[1750051966581,0.76515,2613.6,2613.3,1.2317]
[1750051967187,0.7652,2613.4,2613.3,1.2317]
[1750051967384,1.31304416,2613.9,2613.3,1.2317]
[1750051967586,0.76519,2613.5,2613.2,3.2078]
[1750051968088,0.00574416,2613.9,2613.2,3.2078]
[1750051968287,45.94174416,2613.9,2613.5,3.2078]
[1750051968594,0.00574416,2613.9,2613.5,3.2078]
[1750051968891,45.85874416,2613.9,2613.5,3.2078]
[1750051969099,45.85874416,2613.9,2613.2,3.2078]
[1750051969284,0.76521,2613.4,2613.2,3.2078]
[1750051969987,45.773,2613.7,2613.2,3.2078]
[1750051970189,0.76519,2613.5,2613.2,3.2078]
[1750051970589,45.651,2613.7,2613.2,3.2078]
[1750051970792,45.651,2613.7,2613.5,3.2078]
[1750051970995,3.04518186,2615.3,2613.5,11.914338]
[1750051971296,1.91191,2614.9,2614.1,3.2078]
[1750051971591,0.76492,2614.4,2614.1,3.2078]
[1750051971897,23.151,2614.5,2614.1,3.2078]
[1750051972188,0.00574416,2614.6,2614.5,0.76488]
[1750051972391,0.76465,2615.3,2614.5,0.51324736]
[1750051972593,23.91563,2615.4,2615.2,3.2078]
[1750051972793,3.2078,2615.8,2615.3,0.51296907]
[1750051972983,0.07646,2615.7,2615.6,3.2078]
[1750051973188,0.07646,2615.7,2615.6,3.72049849]
[1750051973390,0.00574416,2615.9,2615.6,8.2078]
[1750051973696,3.2078,2615.8,2615.7,0.51267704]
[1750051973892,3.2078,2615.8,2614.5,3.2078]
[1750051974101,3.2078,2615.2,2614.5,3.2078]
[1750051974284,23.143,2615.1,2614.9,3.2078]
[1750051974593,23.143,2615.1,2614.6,3.2078]
[1750051974795,26.3508,2615.1,2614.6,3.21354416]
[1750051974992,0.76478,2614.9,2614.6,3.21354416]
[1750051975186,26.3508,2615.1,2614.6,3.21354416]
[1750051975388,0.76482,2614.7,2614.6,3.21354416]
[1750051975793,0.76482,2614.7,2614.6,0.00574416]
[1750051975990,45.198,2615.0,2614.3,3.2078]
[1750051976189,0.76486,2614.6,2614.3,3.2078]
[1750051976495,0.76489,2614.5,2614.3,3.2078]
[1750051976989,26.3508,2615.1,2614.3,3.2078]
[1750051977185,71.3488,2615.1,2614.3,3.2078]
[1750051977498,0.76486,2614.6,2614.3,3.2078]
[1750051977793,0.76491,2614.4,2614.3,3.2078]
[1750051977997,0.76497,2614.2,2614.1,0.00574416]
[1750051978992,44.667,2614.3,2614.1,0.00574416]
[1750051979298,0.00574416,2614.4,2614.1,0.00574416]
[1750051979500,0.00574416,2614.4,2614.3,3.2078]
[1750051980100,0.76497,2614.2,2614.1,0.00574416]
[1750051980497,0.00574416,2614.4,2614.1,0.00574416]
[1750051980688,3.2078,2615.6,2614.3,3.97274]
[1750051980893,3.2078,2616.0,2615.4,3.2078]
[1750051981098,3.2078,2617.2,2615.8,3.2078]
[1750051981291,1.91038,2617.0,2616.3,3.2078]
[1750051981499,0.76424,2616.7,2616.6,3.2078]
[1750051981801,0.76435,2616.4,2616.3,3.2078]
[1750051981994,0.76442,2616.1,2616.0,3.2078]
[1750051982197,0.76447,2615.9,2615.8,0.00573285]
[1750051982598,23.141,2616.5,2615.8,6.30503285]
[1750051982922,23.136,2618.3,2616.3,3.2078]
[1750051983202,3.2078,2617.9,2616.9,3.2078]
[1750051983393,3.2078,2617.5,2616.1,3.2078]
[1750051983593,1.90987,2617.7,2616.7,3.2078]
[1750051983790,3.2078,2617.5,2616.7,3.2078]
[1750051983994,0.76412,2617.1,2617.0,3.2078]
[1750051984200,0.76418,2616.9,2616.8,0.00573285]
[1750051985600,0.76432,2616.4,2616.3,0.06737406]
[1750051986204,11.793628,2616.4,2615.1,3.2078]
[1750051986401,11.793628,2616.4,2614.2,2.20666746]
[1750051986402,3.2078,2615.4,2614.7,3.2078]
[1750051986598,0.00573285,2615.3,2614.9,1.3063]
[1750051986795,0.76499,2614.1,2614.0,2.3527]
[1750051987101,6.79936085,2615.3,2614.0,2.42921]
[1750051987102,26.3388,2614.5,2614.0,2.42921]
[1750051987404,23.131,2614.5,2614.1,1.3063]
[1750051987605,0.76497,2614.2,2614.1,1.3828]
[1750051987795,3.97277,2614.2,2614.1,0.0765]
[1750051988000,0.76497,2614.2,2614.1,0.0765]
[1750051988207,0.76497,2614.2,2614.1,1.3828]
[1750051988405,23.131,2614.5,2614.1,1.3828]
[1750051988597,26.3388,2614.5,2614.1,1.3828]
[1750051988797,23.131,2614.5,2614.1,9.5906]
[1750051989002,23.131,2614.5,2614.1,4.5906]
[1750051989304,3.2078,2614.5,2614.2,1.2905]
[1750051989603,3.2078,2614.8,2614.2,4.4983]
[1750051989798,0.76492,2614.4,2614.2,1.2905]
[1750051989998,0.76489,2614.5,2614.2,1.2905]
[1750051990194,3.2078,2614.8,2614.2,1.2905]
[1750051990597,0.76492,2614.4,2614.2,1.2905]
[1750051990800,0.76489,2614.5,2614.2,4.4983]
[1750051991004,0.76489,2614.5,2614.3,1.2905]
[1750051991198,1.3254,2615.2,2614.3,1.2905]
[1750051991199,0.76491,2614.4,2614.3,1.2905]
[1750051991399,0.76491,2614.4,2614.3,1.64919107]
[1750051992009,0.76499,2614.1,2614.0,2.3527]
[1750051992307,0.76499,2614.1,2614.0,3.668]
[1750051994208,0.76499,2614.1,2614.0,2.3527]
[1750051994414,0.76499,2614.1,2614.0,3.668]
[1750051994605,0.76499,2614.1,2614.0,2.3527]
[1750051994801,0.76499,2614.2,2614.0,3.668]
[1750051995003,26.3418,2614.7,2614.0,3.668]
[1750051995204,1.91175,2615.2,2614.6,3.2078]
[1750051995205,0.7647,2615.2,2614.6,3.2078]
[1750051995409,0.76469,2615.2,2614.7,1.3576]
[1750051995711,3.21353285,2615.3,2614.7,1.3576]
[1750051995907,0.00573285,2615.3,2614.9,3.2078]
[1750051996112,0.00573285,2615.3,2615.0,1.3576]
[1750051996410,0.00573285,2615.3,2614.9,3.2078]
[1750051996618,0.00573285,2615.3,2615.2,3.2078]
[1750051996914,3.2078,2616.6,2615.3,1.91161]
[1750051997108,0.7643,2616.5,2616.0,3.2078]
[1750051997315,0.7643,2616.5,2616.1,1.3576]
[1750051997516,3.2078,2616.9,2616.1,1.3576]
[1750051997704,3.2078,2616.9,2616.3,0.06737406]
[1750051997902,1.9109,2616.3,2615.3,3.2078]
[1750051998107,10.01495085,2616.9,2615.6,3.2078]
[1750051998108,3.2078,2616.7,2615.6,3.2078]
[1750051998312,0.76423,2616.5,2615.9,3.2078]
[1750051998514,1.264,2616.7,2615.9,3.2078]
[1750051998708,0.76423,2616.5,2616.3,0.06737406]
[1750051998912,1.264,2616.7,2616.3,0.06737406]
[1750051998913,0.76418,2616.7,2616.3,0.06737406]
[1750051999119,0.76419,2616.7,2616.4,1.3098]
[1750051999316,0.00573285,2616.9,2616.3,0.06737406]
[1750051999511,0.7642,2616.6,2616.3,1.37717406]
[1750051999712,0.00573285,2616.9,2616.5,3.2078]
[1750052000208,0.7642,2616.6,2616.3,0.06737406]
[1750052000414,0.76422,2616.5,2616.4,1.3098]
[1750052000616,0.76425,2616.4,2616.3,0.06737406]
[1750052001025,1.264,2616.8,2616.3,0.06737406]
[1750052001322,0.76425,2616.4,2616.3,0.06737406]
[1750052002215,5.0,2616.4,2615.4,3.2078]
[1750052002422,0.76451,2615.5,2615.4,3.2078]
[1750052002719,0.76469,2614.9,2614.8,1.3059]
[1750052002921,0.76467,2615.0,2614.8,1.3059]
[1750052003116,0.76469,2614.9,2614.8,1.3059]
[1750052003916,0.00573285,2615.1,2614.8,1.3059]
[1750052004512,0.00573285,2615.1,2614.8,6.3059]
[1750052004725,0.76432,2616.2,2615.0,3.2078]
[1750052005022,3.2078,2616.3,2615.6,3.2078]
[1750052005216,3.2078,2616.0,2615.4,3.2078]
[1750052005418,0.76451,2615.5,2615.4,3.09970559]
[1750052005715,0.76455,2615.4,2615.1,1.3358]
[1750052005921,0.76452,2615.5,2615.1,1.3358]
[1750052006115,0.00573285,2615.7,2615.6,0.76448]
[1750052006419,1.91064,2616.4,2615.6,7.26949834]
[1750052006617,0.76448,2615.6,2615.5,1.3358]
[1750052006916,0.76451,2615.5,2615.4,3.2078]
[1750052007523,0.76457,2615.3,2615.2,0.00573285]
[1750052008721,0.77030285,2615.3,2615.2,0.00573285]
[1750052009226,1.34223285,2615.7,2615.2,0.00573285]
[1750052009425,0.76453,2615.5,2615.2,0.00573285]
[1750052009621,0.76453,2615.5,2615.2,1.25313285]
[1750052009924,3.21353285,2615.7,2615.2,1.25313285]
[1750052010116,0.0114657,2615.7,2615.2,1.25313285]
[1750052010919,0.7645,2615.6,2615.2,1.25313285]
[1750052011224,0.0114657,2615.7,2615.2,1.25313285]
[1750052011717,0.76457,2615.4,2615.2,1.25313285]
[1750052011921,0.0114657,2615.7,2615.2,1.25313285]
[1750052011922,0.76457,2615.3,2615.2,1.25313285]
[1750052012122,0.76457,2615.3,2615.2,0.00573285]
[1750052012318,5.1304657,2615.7,2615.2,0.00573285]
[1750052012319,0.00573285,2615.7,2615.2,0.00573285]
[1750052012525,0.76448,2615.6,2615.5,3.2078]
[1750052013024,0.00573285,2615.7,2615.2,4.47723285]
[1750052013221,0.76457,2615.3,2615.2,0.00573285]
[1750052013424,0.76453,2615.5,2615.2,3.21353285]
[1750052013618,0.00573285,2615.7,2615.3,1.3067]
[1750052013830,0.76425,2616.4,2616.3,0.06737406]
[1750052014028,0.76425,2616.4,2616.3,4.06e-06]
[1750052014232,0.76445,2615.7,2615.6,3.2078]
[1750052014624,0.00572879,2615.7,2615.3,4.5145]
[1750052014827,0.00573285,2615.8,2615.5,0.06737406]
[1750052015022,0.00573285,2615.8,2615.6,4.5145]
[1750052015227,0.01146164,2615.8,2615.5,0.06737406]
[1750052015422,0.76448,2615.6,2615.5,0.06737406]
[1750052016032,0.76447,2615.7,2615.5,0.06737406]
[1750052016223,0.76447,2615.7,2615.5,3.27517406]
[1750052016631,0.00573285,2615.8,2615.5,4.03967406]
[1750052016831,0.01146164,2615.8,2615.5,3.27517406]
[1750052017030,0.76447,2615.7,2615.5,3.27517406]
[1750052017227,0.77590164,2615.8,2615.5,3.27517406]
[1750052017431,0.01146164,2615.8,2615.5,3.27517406]
[1750052017731,0.76448,2615.6,2615.5,3.27517406]
[1750052018323,0.76447,2615.7,2615.5,3.27517406]
[1750052018529,0.00573285,2615.8,2615.7,0.76445]
[1750052018727,0.00573285,2615.8,2615.5,8.27517406]
[1750052018728,0.76448,2615.6,2615.5,3.27517406]
[1750052019031,0.01146164,2615.8,2615.5,3.27517406]
[1750052019233,0.76448,2615.6,2615.5,3.27517406]
[1750052019430,0.77020879,2615.6,2615.5,3.27517406]
[1750052019625,0.76464,2615.1,2614.6,3.97256]
[1750052019826,0.77020879,2615.6,2615.5,0.06737406]
[1750052020226,1.99390879,2615.6,2615.5,0.06737406]
[1750052020532,0.76475,2614.7,2614.6,3.2078]
[1750052020828,3.2078,2614.7,2614.4,0.00573285]
[1750052021030,1.2237,2614.6,2614.0,2.3527]
[1750052021233,3.2078,2614.4,2614.0,2.3527]
[1750052021423,3.97272,2614.1,2614.0,2.3527]
[1750052022042,3.97272,2614.1,2612.9,4.30405819]
[1750052022043,8.2078,2614.1,2612.9,4.30405819]
[1750052022239,3.97288,2613.6,2612.9,3.2078]
[1750052022534,3.97285,2613.7,2613.0,0.76523]
[1750052022736,3.2078,2613.7,2612.9,3.2078]
[1750052022935,3.2078,2613.7,2612.9,5.33136]
[1750052022936,2.06838,2613.6,2612.9,5.33136]
[1750052023124,2.06838,2613.6,2613.0,0.00573285]
[1750052023323,1.3033,2613.6,2613.0,0.00573285]
[1750052023724,26.3378,2613.7,2613.0,1.36403285]
[1750052023725,23.13,2613.7,2613.0,1.36403285]
[1750052023931,0.76508,2613.6,2613.0,1.36403285]
[1750052024231,0.76516,2613.3,2613.0,0.00573285]
[1750052024433,1.3033,2613.6,2613.0,0.00573285]
[1750052024630,0.76519,2613.2,2613.0,1.36403285]
[1750052024934,0.76517,2613.3,2613.1,0.0216]
[1750052025428,0.76514,2613.4,2613.1,0.0216]
[1750052025633,0.76519,2613.2,2613.1,0.0216]
[1750052026132,0.76513,2613.4,2613.1,0.0216]
[1750052026642,0.76519,2613.2,2613.1,0.0216]
[1750052027032,0.76519,2613.2,2613.0,0.00573285]
[1750052027240,1.91313,2613.0,2612.2,3.2078]
[1750052027437,0.76539,2612.5,2612.3,1.3577]
[1750052027825,0.76529,2612.9,2612.3,6.3577]
[1750052028033,3.2078,2612.9,2612.3,1.3577]
[1750052028230,0.76537,2612.6,2612.3,1.36164358]
[1750052028539,0.7654,2612.5,2612.3,1.36164358]
[1750052028730,0.76542,2612.4,2612.3,1.36164358]
[1750052029036,0.76537,2612.6,2612.3,0.07131764]
[1750052029329,0.76532,2612.8,2612.3,1.30351764]
[1750052029532,0.00573285,2612.9,2612.5,0.76538]
[1750052029730,0.00573285,2612.9,2612.4,0.76542]
[1750052029932,0.00573285,2612.9,2612.5,0.76539]
[1750052030136,0.00573285,2612.9,2612.6,1.2322]
[1750052030334,0.77101285,2612.9,2612.6,1.2322]
[1750052030633,0.00573285,2612.9,2612.5,0.76539]
[1750052030839,0.77102285,2612.9,2612.4,0.7654]
[1750052031038,0.76532,2612.8,2612.4,1.99761]
[1750052031239,0.77102285,2612.9,2612.4,1.2322]
[1750052031442,0.76531,2612.8,2612.4,1.2322]
[1750052031645,0.77102285,2612.9,2612.4,1.2322]
[1750052031937,0.76533,2612.7,2612.3,0.83675764]
[1750052032139,0.00573285,2612.9,2612.4,1.2393]
[1750052032336,0.00573285,2612.9,2612.3,0.07131764]
[1750052032639,0.76542,2612.4,2612.3,0.07131764]
[1750052033639,23.142,2612.7,2612.3,0.07131764]
[1750052033942,0.76542,2612.4,2612.3,0.07131764]
[1750052035431,23.142,2612.7,2612.3,0.07131764]
[1750052035733,0.76537,2612.6,2612.3,1.40051764]
[1750052035938,0.76537,2612.6,2612.3,2.16594764]
[1750052036139,23.142,2612.7,2612.3,1.40051764]
[1750052036440,23.142,2612.7,2612.6,0.76536]
[1750052036630,23.142,2612.7,2612.5,3.2078]
[1750052036838,23.142,2612.7,2612.6,2.09456]
[1750052037038,0.00573285,2612.9,2612.6,1.3292]
[1750052037245,0.00573285,2612.9,2612.8,0.7653]
[1750052037441,0.76517,2613.3,2612.8,8.2078]
[1750052037745,0.76515,2613.4,2613.1,3.97299]
[1750052038037,0.76515,2613.4,2613.2,1.3593]
[1750052038242,0.76516,2613.3,2613.2,1.3593]
[1750052038435,3.21353285,2613.5,2613.2,1.3593]
[1750052038738,0.76513,2613.4,2613.2,1.3593]
[1750052038936,0.76515,2613.4,2613.2,1.3593]
[1750052039242,0.00573285,2613.5,2613.3,0.76515]
[1750052039442,0.00573285,2613.5,2613.4,1.3593]
[1750052039637,0.00573285,2613.5,2613.4,2.12443]
[1750052040038,0.00573285,2613.5,2613.4,1.3593]
[1750052040236,0.00573285,2613.5,2613.4,2.12443]
[1750052041042,0.00573285,2613.5,2613.4,1.3593]
[1750052041443,0.77083285,2613.5,2613.4,1.3593]
[1750052041645,0.76515,2613.4,2613.1,3.2078]
[1750052041836,0.76515,2613.4,2612.3,0.07131764]
[1750052041837,5.12082,2613.2,2612.5,3.2078]
[1750052042042,0.76542,2612.4,2612.3,7.64e-06]
[1750052042343,0.76546,2612.3,2611.1,3.2078]
[1750052042540,3.2078,2611.9,2611.1,3.2078]
[1750052042743,3.2078,2611.7,2611.1,3.2078]
[1750052043139,3.2078,2611.7,2611.1,3.21354405]
[1750052043140,0.76571,2611.5,2611.1,3.21354405]
[1750052043442,3.2078,2611.6,2611.1,3.21354405]
[1750052043743,0.76571,2611.4,2611.1,3.21354405]
[1750052044050,0.76577,2611.2,2611.1,0.00574405]
[1750052044244,3.2078,2611.2,2610.4,3.2078]
[1750052044444,0.76593,2610.7,2610.4,3.2078]
[1750052044746,23.15,2611.3,2610.5,4.97527543]
[1750052044946,23.15,2611.3,2611.0,3.2078]
[1750052045346,0.76579,2611.2,2611.1,0.06737406]
[1750052045644,26.3578,2611.3,2611.1,0.06737406]
[1750052045849,0.76577,2611.2,2611.1,0.06737406]
[1750052046048,0.76595,2610.6,2610.5,1.2999]
[1750052046249,26.3578,2611.3,2610.4,3.2078]
[1750052046250,0.76598,2610.5,2610.4,3.2078]
[1750052046844,3.2078,2610.6,2610.0,3.2078]
[1750052047348,3.2078,2610.7,2610.0,3.2078]
[1750052047545,0.76604,2610.3,2610.1,1.3446]
[1750052047743,0.76602,2610.4,2610.0,3.2078]
[1750052048047,1.2787,2610.6,2610.0,3.2078]
[1750052048445,1.2787,2610.6,2609.7,3.2078]
[1750052048747,0.76618,2609.8,2609.7,3.2078]
[1750052048950,0.76634,2609.3,2609.2,3.2078]
[1750052049147,3.2078,2609.6,2609.2,3.2078]
[1750052049347,0.76641,2609.1,2608.8,3.2078]
[1750052049654,0.76642,2609.0,2608.8,3.2078]
[1750052049944,3.2078,2609.2,2608.5,3.2078]
[1750052050147,0.76653,2608.6,2608.5,4.4346]
[1750052050350,0.76653,2608.6,2608.4,40.8]
[1750052050351,0.76663,2608.3,2608.1,3.2078]
[1750052050553,0.76664,2608.3,2608.1,3.2078]
[1750052050752,0.76661,2608.4,2608.1,3.2078]
[1750052050953,23.16574405,2609.1,2608.2,1.2268]
[1750052051148,3.2078,2609.0,2608.4,3.2078]
[1750052051454,0.76643,2609.0,2608.6,0.76653]
[1750052051653,0.76643,2609.0,2608.5,1.99335]
[1750052052039,0.7666,2608.4,2608.1,4.4346]
[1750052052245,0.76655,2608.6,2608.2,1.99344]
[1750052052446,0.76657,2608.5,2608.3,1.2268]
[1750052053049,1.9162,2608.8,2608.1,3.2078]
[1750052053255,3.2078,2608.9,2608.1,3.2078]
[1750052053452,0.76653,2608.7,2608.4,0.76659]
[1750052053656,3.2078,2608.9,2608.5,1.2905]
[1750052053956,0.76654,2608.6,2608.5,1.2905]
[1750052054164,3.2078,2608.9,2608.5,1.2905]
[1750052054353,0.76652,2608.7,2608.5,2.05705]
[1750052054654,0.00574405,2609.1,2608.6,0.76654]
[1750052054858,0.00574405,2609.1,2608.7,1.2905]
[1750052055553,0.00574405,2609.1,2608.8,3.2078]